fUSD/lending_fUSD_20241221
["ID","MTS","AMOUNT","RATE_DAILY","PERIOD"]
[346232507,1734792633739,-500.0,0.00019178,2]
[346232508,1734792633750,-500.0,0.00019178,2]
[346232509,1734792633760,-500.0,0.00019178,2]
[346232510,1734792633770,-500.0,0.00019178,2]
[346232511,1734792633781,-500.0,0.00019178,2]
[346232512,1734792633790,-500.0,0.00019178,2]
[346232513,1734792633801,-500.0,0.00019178,2]
[346232514,1734792633811,-500.0,0.00019178,2]
[346232515,1734792633822,-500.0,0.00019178,2]
[346232516,1734792633832,-563.75567009,0.00019178,2]
[346232517,1734792633842,-500.0,0.00019178,2]
[346232518,1734792633852,-504.58616687,0.00019178,2]
[346232519,1734792633862,-500.0,0.00019178,2]
[346232520,1734792633871,-500.0,0.00019178,2]
[346232521,1734792633881,-500.0,0.00019178,2]
[346232522,1734792633891,-500.0,0.00019178,2]
[346232523,1734792633900,-500.0,0.00019178,2]
[346232524,1734792633910,-500.0,0.00019178,2]
[346232525,1734792633920,-500.0,0.00019178,2]
[346232526,1734792633931,-500.0,0.00019178,2]
[346232527,1734792633942,-500.0,0.00019178,2]
[346232528,1734792633952,-500.0,0.00019178,2]
[346232529,1734792633965,-500.0,0.00019178,2]
[346232530,1734792633976,-500.0,0.00019178,2]
[346232531,1734792633986,-500.0,0.00019178,2]
[346232532,1734792633996,-500.0,0.00019178,2]
[346232533,1734792634006,-500.0,0.00019178,2]
[346232534,1734792634016,-500.0,0.00019178,2]
[346232535,1734792634025,-500.0,0.00019178,2]
[346232536,1734792634035,-683.95,0.00019178,2]
[346232537,1734792634045,-500.0,0.00019178,2]
[346232538,1734792634054,-500.0,0.00019178,2]
[346232539,1734792634064,-500.0,0.00019178,2]
[346232540,1734792634074,-500.0,0.00019178,2]
[346232541,1734792634083,-500.0,0.00019178,2]
[346232542,1734792634093,-500.0,0.00019178,2]
[346232543,1734792634103,-500.0,0.00019178,2]
[346232544,1734792634113,-500.0,0.00019178,2]
[346232545,1734792634123,-500.0,0.00019178,2]
[346232546,1734792634133,-500.0,0.00019178,2]
[346232547,1734792634143,-500.0,0.00019178,2]
[346232548,1734792634153,-500.0,0.00019178,2]
[346232549,1734792634163,-769.2,0.00019178,2]
[346232550,1734792634173,-500.0,0.00019178,2]
[346232551,1734792634182,-150.90397475,0.00019178,2]
[346232552,1734792634192,-500.0,0.00019178,2]
[346232553,1734792634202,-394.70739899,0.00019178,2]
[346232554,1734792634220,-500.0,0.00019178,2]
[346232555,1734792634231,-500.0,0.00019178,2]
[346232556,1734792634241,-500.0,0.00019178,2]
[346232557,1734792634251,-679.68,0.00019178,2]
[346232558,1734792634261,-500.0,0.00019178,2]
[346232559,1734792634271,-500.0,0.00019178,2]
[346232560,1734792634281,-500.0,0.00019178,2]
[346232561,1734792634290,-500.0,0.00019178,2]
[346232562,1734792634300,-500.0,0.00019178,2]
[346232563,1734792634310,-500.0,0.00019178,2]
[346232564,1734792634320,-357.60297744,0.00019178,2]
[346232565,1734792634330,-500.0,0.00019178,2]
[346232566,1734792634339,-500.0,0.00019178,2]
[346232567,1734792634349,-500.0,0.00019178,2]
[346232568,1734792634359,-500.0,0.00019178,2]
[346232569,1734792634369,-500.0,0.00019178,2]
[346232570,1734792634379,-500.0,0.00019178,2]
[346232571,1734792634388,-500.0,0.00019178,2]
[346232572,1734792634398,-500.0,0.00019178,2]
[346232573,1734792634407,-500.0,0.00019178,2]
[346232574,1734792634417,-500.0,0.00019178,2]
[346232575,1734792634427,-500.0,0.00019178,2]
[346232576,1734792634437,-503.23834425,0.00019178,2]
[346232577,1734792634447,-500.0,0.00019178,2]
[346232578,1734792634460,-500.0,0.00019178,2]
[346232579,1734792634469,-500.0,0.00019178,2]
[346232580,1734792634479,-500.0,0.00019178,2]
[346232581,1734792634489,-500.0,0.00019178,2]
[346232582,1734792634498,-500.0,0.00019178,2]
[346232583,1734792634508,-500.0,0.00019178,2]
[346232584,1734792634518,-500.0,0.00019178,2]
[346232585,1734792634527,-500.0,0.00019178,2]
[346232586,1734792634537,-500.0,0.00019178,2]
[346232587,1734792634547,-500.0,0.00019178,2]
[346232588,1734792634561,-500.0,0.00019178,2]
[346232589,1734792634570,-500.0,0.00019178,2]
[346232590,1734792634580,-500.0,0.00019178,2]
[346232591,1734792634591,-500.0,0.00019178,2]
[346232592,1734792634600,-353.76,0.00019178,2]
[346232593,1734792634610,-413.14307035,0.00019178,2]
[346232594,1734792634620,-500.0,0.00019178,2]
[346232595,1734792634630,-500.0,0.00019178,2]
[346232596,1734792634639,-500.0,0.00019178,2]
[346232597,1734792634649,-500.0,0.00019178,2]
[346232598,1734792634658,-622.51,0.00019178,2]
[346232599,1734792634668,-500.0,0.00019178,2]
[346232600,1734792634678,-500.0,0.00019178,2]
[346232601,1734792634688,-1170.66,0.00019178,2]
[346232602,1734792634698,-500.0,0.00019178,2]
[346232603,1734792634710,-500.0,0.00019178,2]
[346232604,1734792634720,-500.0,0.00019178,2]
[346232605,1734792634730,-500.0,0.00019178,2]
[346232606,1734792634740,-500.0,0.00019178,2]
[346232607,1734792634750,-500.0,0.00019178,2]
[346232608,1734792634760,-500.0,0.00019178,2]
[346232609,1734792634769,-541.53,0.00019178,2]
[346232610,1734792634779,-500.0,0.00019178,2]
[346232611,1734792634788,-500.0,0.00019178,2]
[346232612,1734792634798,-500.0,0.00019178,2]
[346232613,1734792634808,-500.0,0.00019178,2]
[346232614,1734792634817,-500.0,0.00019178,2]
[346232615,1734792634827,-500.0,0.00019178,2]
[346232616,1734792634837,-500.0,0.00019178,2]
[346232617,1734792634847,-500.0,0.00019178,2]
[346232618,1734792634856,-500.0,0.00019178,2]
[346232619,1734792634866,-500.0,0.00019178,2]
[346232620,1734792634875,-500.0,0.00019178,2]
[346232621,1734792634884,-500.0,0.00019178,2]
[346232622,1734792634893,-560.77,0.00019178,2]
[346232623,1734792634903,-500.0,0.00019178,2]
[346232624,1734792634913,-500.0,0.00019178,2]
[346232625,1734792634923,-320.43675896,0.00019178,2]
[346232626,1734792634932,-500.0,0.00019178,2]
[346232627,1734792634942,-500.0,0.00019178,2]
[346232628,1734792634952,-500.0,0.00019178,2]
[346232629,1734792634964,-500.0,0.00019178,2]
[346232630,1734792634974,-500.0,0.00019178,2]
[346232631,1734792634984,-500.0,0.00019178,2]
[346232632,1734792634993,-500.0,0.00019178,2]
[346232633,1734792635003,-500.0,0.00019178,2]
[346232634,1734792635012,-500.0,0.00019178,2]
[346232635,1734792635021,-500.0,0.00019178,2]
[346232636,1734792635031,-500.0,0.00019178,2]
[346232637,1734792635040,-500.0,0.00019178,2]
[346232638,1734792635050,-500.0,0.00019178,2]
[346232639,1734792635059,-500.0,0.00019178,2]
[346232640,1734792635070,-500.0,0.00019178,2]
[346232641,1734792635080,-500.0,0.00019178,2]
[346232642,1734792635090,-500.0,0.00019178,2]
[346232643,1734792635099,-1215.15,0.00019178,2]
[346232644,1734792635109,-500.0,0.00019178,2]
[346232645,1734792635118,-500.0,0.00019178,2]
[346232646,1734792635128,-500.0,0.00019178,2]
[346232647,1734792635138,-500.0,0.00019178,2]
[346232648,1734792635148,-500.0,0.00019178,2]
[346232649,1734792635157,-500.0,0.00019178,2]
[346232650,1734792635167,-155.17745676,0.00019251,2]
[346232651,1734792635177,-520.95,0.00019255,2]
[346232652,1734792635186,-500.0,0.00019255,2]
[346232653,1734792635195,-500.0,0.00019255,2]
[346232654,1734792635205,-500.0,0.00019255,2]
[346232655,1734792635216,-500.0,0.00019255,2]
[346232656,1734792635226,-500.0,0.00019255,2]
[346232657,1734792635236,-500.0,0.00019255,2]
[346232658,1734792635245,-500.0,0.00019255,2]
[346232659,1734792635255,-504.14506407,0.00019255,2]
[346232660,1734792635265,-500.0,0.00019255,2]
[346232661,1734792635275,-500.0,0.00019255,2]
[346232662,1734792635284,-500.0,0.00019255,2]
[346232663,1734792635293,-500.0,0.00019255,2]
[346232664,1734792635303,-500.0,0.00019255,2]
[346232665,1734792635313,-565.85,0.00019255,2]
[346232666,1734792635322,-549.25,0.00019255,2]
[346232667,1734792635331,-500.0,0.00019255,2]
[346232668,1734792635341,-500.0,0.00019255,2]
[346232669,1734792635350,-500.0,0.00019255,2]
[346232670,1734792635359,-500.0,0.00019255,2]
[346232671,1734792635369,-822.81,0.00019255,2]
[346232672,1734792635379,-472.07879553,0.00019255,2]
[346232673,1734792635389,-500.0,0.00019255,2]
[346232674,1734792635399,-232.959244,0.00019255,2]
[346232675,1734792635408,-500.0,0.00019255,2]
[346232676,1734792635418,-500.0,0.00019255,2]
[346232677,1734792635428,-500.0,0.00019255,2]
[346232678,1734792635439,-500.0,0.00019255,2]
[346232679,1734792635450,-500.0,0.00019255,2]
[346232680,1734792635459,-500.0,0.00019255,2]
[346232681,1734792635468,-500.0,0.00019255,2]
[346232682,1734792635478,-500.0,0.00019255,2]
[346232683,1734792635487,-823.33,0.00019255,2]
[346232684,1734792635497,-207.267309,0.00019255,2]
[346232685,1734792635507,-500.0,0.00019255,2]
[346232686,1734792635521,-476.19338129,0.00019255,2]
[346232687,1734792635532,-253.93374928,0.00019255,2]
[346232688,1734792635547,-510.68,0.00019255,2]
[346232689,1734792635563,-500.0,0.00019255,2]
[346232690,1734792635575,-2002.36,0.00019255,2]
[346232691,1734792635587,-500.0,0.00019255,2]
[346232692,1734792635598,-500.0,0.00019255,2]
[346232693,1734792635612,-587.4,0.00019255,2]
[346232694,1734792635624,-1042.9,0.00019255,2]
[346232695,1734792635638,-500.0,0.00019255,2]
[346232696,1734792635650,-500.0,0.00019255,2]
[346232697,1734792635662,-500.0,0.00019255,2]
[346232698,1734792635675,-500.0,0.00019255,2]
[346232699,1734792635687,-500.0,0.00019255,2]
[346232700,1734792635700,-500.0,0.00019255,2]
[346232701,1734792635714,-589.07,0.00019255,2]
[346232702,1734792635726,-349.77794581,0.00019255,2]
[346232703,1734792635738,-800.77,0.00019255,2]
[346232704,1734792635749,-514.46,0.00019255,2]
[346232705,1734792635759,-688.92,0.00019255,2]
[346232706,1734792635772,-500.0,0.00019255,2]
[346232707,1734792635785,-500.0,0.00019255,2]
[346232708,1734792635797,-4306.39,0.00019255,2]
[346232709,1734792635810,-500.0,0.00019255,2]
[346232710,1734792635823,-2955.65,0.00019255,2]
[346232711,1734792635836,-500.0,0.00019255,2]
[346232712,1734792635848,-500.0,0.00019255,2]
[346232713,1734792635860,-2216.41,0.00019255,2]
[346232714,1734792635872,-689.77,0.00019255,2]
[346232715,1734792635885,-500.0,0.00019255,2]
[346232716,1734792635898,-500.0,0.00019255,2]
[346232717,1734792635912,-500.0,0.00019255,2]
[346232718,1734792635924,-500.0,0.00019255,2]
[346232719,1734792635937,-521.04,0.00019255,2]
[346232720,1734792635950,-500.0,0.00019255,2]
[346232721,1734792635964,-3029.55,0.00019255,2]
[346232722,1734792635977,-683.71,0.00019255,2]
[346232723,1734792635989,-500.0,0.00019255,2]
[346232724,1734792636001,-18610.82334038,0.00019256,2]
[346232725,1734792636015,-18610.82334038,0.00019345,2]
[346232726,1734792636028,-841.18,0.0001935,2]
[346232727,1734792636043,-500.0,0.0001935,2]
[346232728,1734792636055,-500.0,0.0001935,2]
[346232729,1734792636067,-680.04,0.0001935,2]
[346232730,1734792636078,-500.0,0.0001935,2]
[346232731,1734792636089,-1414.98,0.0001935,2]
[346232732,1734792636099,-255.31508682,0.0001935,2]
[346232733,1734792636111,-500.0,0.0001935,2]
[346232734,1734792636121,-2100.44,0.0001935,2]
[346232735,1734792636134,-871.11,0.0001935,2]
[346232736,1734792636147,-1042.98,0.0001935,2]
[346232737,1734792636159,-945.21,0.0001935,2]
[346232738,1734792636170,-1213.22,0.0001935,2]
[346232739,1734792636180,-1472.05,0.0001935,2]
[346232740,1734792636191,-500.0,0.0001935,2]
[346232741,1734792636201,-853.66,0.0001935,2]
[346232742,1734792636214,-500.0,0.0001935,2]
[346232743,1734792636226,-500.0,0.0001935,2]
[346232744,1734792636240,-3885.31,0.0001935,2]
[346232745,1734792636252,-804.7,0.0001935,2]
[346232746,1734792636263,-500.0,0.0001935,2]
[346232747,1734792636274,-500.0,0.0001935,2]
[346232748,1734792636285,-500.0,0.0001935,2]
[346232749,1734792636296,-500.0,0.0001935,2]
[346232750,1734792636306,-292.30415087,0.0001935,2]
[346232751,1734792636318,-780.05,0.0001935,2]
[346232752,1734792636329,-500.0,0.0001935,2]
[346232753,1734792636339,-5000.0,0.00019351,2]
[346232754,1734792636350,-14247.95247407,0.00019351,2]
[346232755,1734792636362,-1765.12811347,0.000194,2]
[346232756,1734792636373,-500.0,0.00019409,2]
[346232757,1734792636385,-500.0,0.00019409,2]
[346232758,1734792636397,-500.0,0.00019409,2]
[346232759,1734792636409,-14247.952474,0.0001941,2]
[346232760,1734792636420,-1765.12811346,0.00019415,2]
[346232761,1734792636432,-150.0,0.00019415,2]
[346232762,1734792636443,-8996.3989,0.00019416,2]
[346232763,1734792636456,-1765.12811346,0.00019429,2]
[346232764,1734792636470,-18610.82334038,0.00019434,2]
[346232765,1734792636481,-319.61163086,0.00019451,2]
[346232766,1734792636496,-500.0,0.00019451,2]
[346232767,1734792636507,-500.0,0.00019451,2]
[346232768,1734792636519,-500.0,0.00019451,2]
[346232769,1734792636530,-500.0,0.00019451,2]
[346232770,1734792636541,-500.0,0.00019451,2]
[346232771,1734792636552,-236.68207408,0.00019451,2]
[346232772,1734792636565,-500.0,0.00019451,2]
[346232773,1734792636576,-500.0,0.00019451,2]
[346232774,1734792636588,-500.0,0.00019451,2]
[346232775,1734792636599,-500.0,0.00019451,2]
[346232776,1734792636611,-500.0,0.00019451,2]
[346232777,1734792636624,-500.0,0.00019451,2]
[346232778,1734792636636,-500.0,0.00019451,2]
[346232779,1734792636646,-500.0,0.00019451,2]
[346232780,1734792636657,-500.0,0.00019451,2]
[346232781,1734792636668,-500.0,0.00019451,2]
[346232782,1734792636679,-152.30632369,0.00019451,2]
[346232783,1734792636690,-500.0,0.00019451,2]
[346232784,1734792636701,-500.0,0.00019451,2]
[346232785,1734792636715,-500.0,0.00019451,2]
[346232786,1734792636726,-505.06240129,0.00019451,2]
[346232787,1734792636737,-500.0,0.00019451,2]
[346232788,1734792636748,-500.0,0.00019451,2]
[346232789,1734792636759,-500.0,0.00019451,2]
[346232790,1734792636770,-500.0,0.00019451,2]
[346232791,1734792636781,-500.0,0.00019451,2]
[346232792,1734792636792,-400.38,0.00019451,2]
[346232793,1734792636802,-281.15,0.00019451,2]
[346232794,1734792636813,-564.21,0.00019451,2]
[346232795,1734792636824,-500.0,0.00019451,2]
[346232796,1734792636834,-500.0,0.00019451,2]
[346232797,1734792636845,-500.0,0.00019451,2]
[346232798,1734792636856,-500.0,0.00019451,2]
[346232799,1734792636866,-500.0,0.00019451,2]
[346232800,1734792636878,-500.0,0.00019451,2]
[346232801,1734792636888,-500.0,0.00019451,2]
[346232802,1734792636899,-500.0,0.00019451,2]
[346232803,1734792636911,-500.0,0.00019451,2]
[346232804,1734792636921,-502.32409012,0.00019451,2]
[346232805,1734792636932,-500.0,0.00019451,2]
[346232806,1734792636943,-500.0,0.00019451,2]
[346232807,1734792636954,-500.0,0.00019451,2]
[346232808,1734792636968,-501.232224,0.00019451,2]
[346232809,1734792636978,-500.0,0.00019451,2]
[346232810,1734792636989,-500.0,0.00019451,2]
[346232811,1734792637000,-500.0,0.00019451,2]
[346232812,1734792637016,-500.0,0.00019451,2]
[346232813,1734792637028,-614.94956098,0.00019451,2]
[346232814,1734792637039,-523.47,0.00019451,2]
[346232815,1734792637050,-1031.53,0.00019451,2]
[346232816,1734792637062,-500.0,0.00019451,2]
[346232817,1734792637073,-918.77,0.00019451,2]
[346232818,1734792637085,-894.68,0.00019451,2]
[346232819,1734792637096,-500.0,0.00019451,2]
[346232820,1734792637107,-994.88,0.00019451,2]
[346232821,1734792637119,-670.36,0.00019451,2]
[346232822,1734792637131,-500.0,0.00019451,2]
[346232823,1734792637142,-500.0,0.00019451,2]
[346232824,1734792637153,-642.8,0.00019451,2]
[346232825,1734792637165,-774.93,0.00019451,2]
[346232826,1734792637176,-500.0,0.00019451,2]
[346232827,1734792637187,-500.0,0.00019451,2]
[346232828,1734792637198,-500.0,0.00019451,2]
[346232829,1734792637209,-1236.64,0.00019451,2]
[346232830,1734792637221,-2022.23,0.00019451,2]
[346232831,1734792637232,-500.0,0.00019451,2]
[346232832,1734792637243,-605.16474944,0.00019451,2]
[346232833,1734792637255,-500.0,0.00019451,2]
[346232834,1734792637267,-1053.86,0.00019451,2]
[346232835,1734792637278,-500.0,0.00019451,2]
[346232836,1734792637289,-500.0,0.00019451,2]
[346232837,1734792637300,-581.99,0.00019451,2]
[346232838,1734792637310,-1767.08,0.00019451,2]
[346232839,1734792637322,-500.0,0.00019451,2]
[346232840,1734792637333,-500.0,0.00019451,2]
[346232841,1734792637345,-500.0,0.00019451,2]
[346232842,1734792637357,-500.0,0.00019451,2]
[346232843,1734792637368,-738.86,0.00019451,2]
[346232844,1734792637379,-500.0,0.00019451,2]
[346232845,1734792637391,-829.61,0.00019451,2]
[346232846,1734792637402,-553.46,0.00019451,2]
[346232847,1734792637413,-500.0,0.00019451,2]
[346232848,1734792637424,-500.0,0.00019451,2]
[346232849,1734792637435,-500.0,0.00019451,2]
[346232850,1734792637446,-500.0,0.00019451,2]
[346232851,1734792637457,-500.0,0.00019451,2]
[346232853,1734792637469,-500.0,0.00019451,2]
[346232854,1734792637479,-500.0,0.00019451,2]
[346232856,1734792637490,-500.0,0.00019451,2]
[346232857,1734792637501,-500.0,0.00019451,2]
[346232858,1734792637511,-500.0,0.00019451,2]
[346232859,1734792637522,-568.68,0.00019451,2]
[346232860,1734792637532,-500.0,0.00019451,2]
[346232861,1734792637543,-500.0,0.00019451,2]
[346232862,1734792637557,-536.52,0.00019451,2]
[346232863,1734792637568,-500.0,0.00019451,2]
[346232864,1734792637579,-500.0,0.00019451,2]
[346232865,1734792637591,-2245.66,0.00019451,2]
[346232866,1734792637602,-594.92,0.00019451,2]
[346232867,1734792637613,-500.0,0.00019451,2]
[346232868,1734792637624,-500.0,0.00019451,2]
[346232869,1734792637635,-575.13,0.00019451,2]
[346232870,1734792637647,-506.37,0.00019451,2]
[346232871,1734792637658,-500.0,0.00019451,2]
[346232873,1734792637669,-804.97,0.00019451,2]
[346232874,1734792637680,-500.0,0.00019451,2]
[346232876,1734792637691,-500.0,0.00019451,2]
[346232877,1734792637702,-500.0,0.00019451,2]
[346232878,1734792637715,-191.93670187,0.00019451,2]
[346232879,1734792637726,-331.17,0.00019451,2]
[346232880,1734792637737,-1403.36,0.00019451,2]
[346232881,1734792637748,-500.0,0.00019451,2]
[346232882,1734792637760,-884.6,0.00019451,2]
[346232883,1734792637770,-500.0,0.00019451,2]
[346232884,1734792637781,-500.0,0.00019451,2]
[346232885,1734792637793,-1177.71,0.00019451,2]
[346232886,1734792637804,-734.58,0.00019451,2]
[346232887,1734792637816,-500.0,0.00019451,2]
[346232888,1734792637827,-500.0,0.00019451,2]
[346232889,1734792637838,-1322.02,0.00019451,2]
[346232890,1734792637849,-500.0,0.00019451,2]
[346232891,1734792637860,-500.0,0.00019451,2]
[346232892,1734792637872,-500.0,0.00019451,2]
[346232893,1734792637883,-781.71,0.00019451,2]
[346232894,1734792637893,-3019.16,0.00019451,2]
[346232895,1734792637904,-500.0,0.00019452,2]
[346232896,1734792637916,-500.0,0.00019452,2]
[346232897,1734792637927,-500.0,0.00019452,2]
[346232898,1734792637938,-428.85174595,0.00019452,2]
[346232899,1734792637949,-700.0,0.00019452,2]
[346232900,1734792637961,-500.0,0.00019452,2]
[346232901,1734792637971,-500.0,0.00019452,2]
[346232902,1734792637982,-500.0,0.00019452,2]
[346232903,1734792637994,-500.0,0.00019452,2]
[346232904,1734792638006,-562.57548608,0.00019452,2]
[346232905,1734792638017,-500.0,0.00019452,2]
[346232906,1734792638030,-500.0,0.00019452,2]
[346232907,1734792638042,-500.0,0.00019452,2]
[346232908,1734792638053,-298.45338728,0.00019452,2]
[346232909,1734792638365,-500.0,0.00019452,2]
[346232910,1734792638389,-500.0,0.00019452,2]
[346232911,1734792638408,-500.0,0.00019452,2]
[346232912,1734792638418,-500.0,0.00019452,2]
[346232913,1734792638428,-500.0,0.00019452,2]
[346232914,1734792638438,-500.0,0.00019452,2]
[346232915,1734792638447,-500.0,0.00019452,2]
[346232916,1734792638456,-500.0,0.00019452,2]
[346232917,1734792638468,-500.0,0.00019452,2]
[346232918,1734792638477,-500.0,0.00019452,2]
[346232919,1734792638487,-500.0,0.00019452,2]
[346232920,1734792638497,-500.0,0.00019452,2]
[346232921,1734792638506,-500.0,0.00019452,2]
[346232922,1734792638516,-500.0,0.00019452,2]
[346232923,1734792638525,-500.0,0.00019452,2]
[346232924,1734792638534,-500.0,0.00019452,2]
[346232925,1734792638545,-500.0,0.00019452,2]
[346232926,1734792638558,-500.0,0.00019452,2]
[346232927,1734792638567,-500.0,0.00019452,2]
[346232928,1734792638576,-500.0,0.00019452,2]
[346232929,1734792638587,-500.0,0.00019452,2]
[346232930,1734792638596,-500.0,0.00019452,2]
[346232931,1734792638606,-202.25530048,0.00019452,2]
[346232932,1734792638616,-500.0,0.00019452,2]
[346232933,1734792638625,-500.0,0.00019452,2]
[346232934,1734792638637,-500.0,0.00019452,2]
[346232935,1734792638646,-341.89051447,0.00019452,2]
[346232936,1734792638912,-158.10948553,0.00019452,2]
[346232937,1734792638922,-500.0,0.00019452,2]
[346232938,1734792638932,-106.94406159,0.00019452,2]
[346232939,1734792639390,-264.9764,0.00019078,2]
[346232940,1734792639400,-69.22708751,0.00019409,2]
[346232941,1734792639416,-430.77291249,0.00019409,2]
[346232942,1734792639426,-393.05593841,0.00019452,2]
[346232943,1734792639436,-500.0,0.00019452,2]
[346232944,1734792639446,-500.0,0.00019452,2]
[346232945,1734792639455,-683.95,0.00019452,2]
[346232946,1734792639466,-500.0,0.00019452,2]
[346232947,1734792639475,-500.0,0.00019452,2]
[346232948,1734792639485,-500.0,0.00019452,2]
[346232949,1734792639494,-500.0,0.00019452,2]
[346232950,1734792639504,-500.0,0.00019452,2]
[346232951,1734792639516,-500.0,0.00019452,2]
[346232952,1734792639526,-500.0,0.00019452,2]
[346232953,1734792639536,-500.0,0.00019452,2]
[346232954,1734792639546,-500.0,0.00019452,2]
[346232955,1734792639560,-500.0,0.00019452,2]
[346232956,1734792639569,-500.0,0.00019452,2]
[346232957,1734792639579,-500.0,0.00019452,2]
[346232958,1734792639589,-769.2,0.00019452,2]
[346232959,1734792639599,-462.2211491,0.00019452,2]
[346232960,1734792639627,-37.7788509,0.00019452,2]
[346232961,1734792639637,-500.0,0.00019452,2]
[346232962,1734792639647,-507.14195529,0.00019452,2]
[346232963,1734792639657,-500.0,0.00019452,2]
[346232964,1734792639666,-272.40260454,0.00019452,2]
[346232965,1734792639806,-307.6107442,0.00019409,2]
[346232972,1734792640125,-222.0792558,0.00019409,2]
[346232973,1734792640135,-227.59739546,0.00019452,2]
[346232974,1734792640144,-679.68,0.00019452,2]
[346232975,1734792640154,-500.0,0.00019452,2]
[346232976,1734792640164,-26.48068082,0.00019452,2]
[346232999,1734792644030,-500.0,0.00019178,2]
[346233000,1734792644039,-500.0,0.00019255,2]
[346233001,1734792644049,-152.333274,0.0001935,2]
[346233002,1734792644059,-1072.93205846,0.00019359,2]
[346233003,1734792644068,-500.0,0.00019409,2]
[346233004,1734792644078,-500.0,0.00019451,2]
[346233005,1734792644088,-500.0,0.00019451,2]
[346233006,1734792644098,-473.51931918,0.00019452,2]
[346233007,1734792644107,-500.0,0.00019452,2]
[346233008,1734792644117,-500.0,0.00019452,2]
[346233009,1734792644126,-500.0,0.00019452,2]
[346233010,1734792644135,-500.0,0.00019452,2]
[346233011,1734792644145,-500.0,0.00019452,2]
[346233012,1734792644154,-500.0,0.00019452,2]
[346233013,1734792644164,-500.0,0.00019452,2]
[346233014,1734792644173,-500.0,0.00019452,2]
[346233015,1734792644182,-500.0,0.00019452,2]
[346233016,1734792644192,-500.0,0.00019452,2]
[346233017,1734792644202,-428.0943943,0.00019452,2]
[346233018,1734792644227,-71.9056057,0.00019452,2]
[346233019,1734792644236,-431.4924436,0.00019452,2]
[346233020,1734792644248,-68.5075564,0.00019452,2]
[346233021,1734792644257,-500.0,0.00019452,2]
[346233022,1734792644266,-500.0,0.00019452,2]
[346233023,1734792644276,-500.0,0.00019452,2]
[346233024,1734792644285,-500.0,0.00019452,2]
[346233025,1734792644295,-170.59504881,0.00019452,2]
[346233028,1734792645781,-500.0,0.00019409,2]
[346233029,1734792645791,-329.40495119,0.00019452,2]
[346233030,1734792645802,-290.11877381,0.00019452,2]
[346233031,1734792646087,-500.0,0.0001935,2]
[346233032,1734792646098,-209.88122619,0.00019452,2]
[346233033,1734792646108,-500.0,0.00019452,2]
[346233034,1734792646118,-586.85,0.00019452,2]
[346233035,1734792646128,-500.0,0.00019452,2]
[346233036,1734792646137,-500.0,0.00019452,2]
[346233037,1734792646147,-500.0,0.00019452,2]
[346233038,1734792646156,-500.0,0.00019452,2]
[346233039,1734792646166,-500.0,0.00019452,2]
[346233040,1734792646176,-500.0,0.00019452,2]